[Event "1st Sales Oliveira Masters 2022"]
[Site "Sales Oliveira"]
[Date "2022.06.08"]
[Round "2.3"]
[White "Labussiere, Victor"]
[Black "Rodi, Luis Ernesto"]
[Result "0-1"]
[ECO "A20"]
[WhiteElo "2349"]
[BlackElo "2351"]
[Annotator "TA"]
[PlyCount "42"]
[EventDate "2022.05.30"]
[EventType "swiss"]
[EventCountry "BRA"]
[SourceTitle "playchess.com"]
[Source "ChessBase"]
[SourceQuality "1"]
[TimeControl "40/5400+30:1800+30"]

{[%evp 9,42,0,32,41,46,-9,48,0,69,52,124,108,140,93,91,82,70,64,125,129,200,211,197,193,204,182,174,161,226,229,279,179,181,160,161]} 1. c4 {[%emt 0:00:33]} e5 {[%emt 0:00:11]} 2. g3 {[%emt 0:01:17]} Nf6 {[%emt 0:00:08]} 3. Bg2 {[%emt 0:00:03]} c6 {[%emt 0:00:09]} 4. d4 {[%emt 0:01:19][%cal Bd2d4,Bd4d5][%mdl 32]} e4 {[%emt 0:00:07]} 5. d5 {[%emt 1:29:48]} Bc5 {[%emt 0:08:08]} 6. Nc3 {[%emt 0:00:00] A20: English Opening: 1...e5.} O-O {[%emt 0:18:38] [#]} 7. Nh3 $146 {[%emt 0:00:00]} (7. Nxe4 $14 Nxe4 8. Bxe4) ({Predecessor:} 7. Nxe4 Nxe4 8. Bxe4 Qb6 9. e3 Qb4+ 10. Bd2 Qxc4 11. Bg2 d6 12. Qb3 Qa6 13. Ne2 {0-1 (27) Claridge Hansen,W (2300)-Sadler,M (2659) London 2015}) 7... e3 {[%emt 0:11:27]} (7... Re8 $11) 8. f3 {[%emt 0:00:00]} (8. Bxe3 $14 Bxe3 9. fxe3) 8... b5 {[%emt 0:03:41]} ({Better is} 8... cxd5 $11 9. cxd5 Qe7) 9. cxb5 $14 {[%emt 0:00:00]} cxd5 {[%emt 0:03:43]} (9... a6 $14) 10. O-O $16 {[%emt 0:00:00]} d4 {[%emt 0:02:28]} 11. Na4 {[%emt 0:00:00]} (11. b4 $142 $1 {[%cal Rb4c5]}) 11... d6 {[%emt 0:01:06]} 12. b4 $1 {[%emt 0:00:00]} Bxb4 {[%emt 0:03:07]} 13. Qxd4 {[%emt 0:00:00]} Qa5 {[%emt 0:01:33]} (13... Ba5 $1 $14) 14. Rb1 $36 {[%emt 0:00:00][%mdl 2048] White has strong initiative.} Qxa4 {[%emt 0:11:27]} (14... Bd2 $16) 15. Rxb4 $18 {[%emt 0:00:00]} Qxa2 {[%emt 0:00:06]} 16. Bxe3 {[%emt 0:00:00]} a5 {[%emt 0:07:35]} 17. Rb2 {[%emt 0:00:00]} Qa3 {[%emt 0:01:01]} 18. Bf4 {[%emt 0:00:00]} d5 {[%emt 0:01:09]} (18... Qc5 $142 19. Rd1 Qxd4+ 20. Rxd4 d5) 19. e4 {[%emt 0:00:00]} Be6 {[%emt 0:06:17]} 20. Bg5 {[%emt 0:00:00]} dxe4 {[%emt 0:03:34]} 21. fxe4 {[%emt 0:06:07] [#] Hoping for Nf4.} ({Don't take} 21. Bxf6 gxf6 22. Nf4 (22. Qxf6 Nd7 $14) 22... Nd7 $16) 21... Nbd7 {[%emt 0:00:41][%mdl 32768] Weighted Error Value: White=0.21 (precise) /Black=0.37. Loss on time!?} 0-1

[Event "1st Sales Oliveira Masters 2022"]
[Site "Sales Oliveira"]
[Date "2022.06.08"]
[Round "2.4"]
[White "Delgado Ramirez, Neuris"]
[Black "Lima, Darcy"]
[Result "1-0"]
[ECO "B70"]
[WhiteElo "2603"]
[BlackElo "2488"]
[Annotator "TA"]
[PlyCount "57"]
[EventDate "2022.05.30"]
[EventType "swiss"]
[EventCountry "BRA"]
[SourceTitle "playchess.com"]
[Source "ChessBase"]
[SourceQuality "1"]
[TimeControl "40/5400+30:1800+30"]

{[%evp 11,56,13,28,0,-13,-17,-28,-25,-23,-32,-21,-45,-13,-75,0,0,0,-46,0,0,0,0,0,0,0,-4,-12,-14,-12,-32,0,-20,-19,-21,8,0,0,0,0,0,0,0,0,0,29997,29997,29999]} 1. e4 {[%emt 0:00:30]} c5 {[%emt 0:00:15]} 2. Nf3 {[%emt 0:00:07]} d6 {[%emt 0:00:31]} 3. d4 {[%emt 0:00:07]} Nf6 {[%emt 0:00:07]} 4. Nc3 {[%emt 0:00:07]} cxd4 {[%emt 0:00:12]} 5. Nxd4 {[%emt 0:00:05]} Nc6 {[%emt 0:00:09]} 6. Be2 {[%emt 0:00:04]} g6 {[%emt 0:01:50]} 7. h4 {[%emt 0:01:21] B70: Sicilian Dragon: 6 g3 and 6 Be2 (without a later Be3).} Bg7 {[%emt 0:10:17][%cal Of6e4]} 8. Nxc6 $5 {[%emt 0:00:33][%mdl 4] A promising side line.} bxc6 {[%emt 0:00:06]} 9. h5 {[%emt 0:00:05] Black has an edge.} Nxh5 {[%emt 0:05:12]} 10. Bxh5 {[%emt 0:02:47]} gxh5 {[%emt 0:00:04]} 11. Qxh5 {[%emt 0:00:09] [#]} Qb6 $146 {[%emt 0:11:50]} ({Predecessor:} 11... Rb8 12. Qg5 Kf8 13. Qg3 Qa5 14. Bd2 Rxb2 15. Nd1 Rb4 16. Bxb4 Qxb4+ 17. c3 Qxe4+ {0-1 (23) Minasian,A (2525)-Wan,Y (2428) Moscow 2012}) 12. O-O {[%emt 0:03:35]} (12. Qf3 $11 {keeps the balance.}) 12... Bxc3 {[%emt 0:02:26]} (12... Be5 $17) 13. bxc3 $11 {[%emt 0:00:19]} Qb5 {[%emt 0:00:52]} 14. Qh4 {[%emt 0:00:18]} (14. Qh6 $11 {is superior.}) 14... Be6 {[%emt 0:11:57]} ({Of course not} 14... Ba6 15. Re1 $11) (14... h5 $15) 15. Be3 {[%emt 0:04:13]} c5 {[%emt 0:06:30]} 16. Rab1 {[%emt 0:02:27][%cal Ba1b1,Bb1b2,Bb2b7][%mdl 32]} Qc6 {[%emt 0:01:12]} 17. Rb2 {[%emt 0:02:44]} f6 {[%emt 0:10:19]} 18. Rfb1 {[%emt 0:00:22][%cal Oe4e5]} h5 {[%emt 0:02:50]} 19. f3 {[%emt 0:04:45][%cal Bf2f3,Bf3f4,Bf4e5,Be5e6][%mdl 32]} Kf7 {[%emt 0:00:15]} 20. c4 {[%emt 0:00:40]} Qa4 {[%emt 0:03:21]} 21. Rb7 {[%emt 0:01:51][%cal Oe4e5]} Rae8 {[%emt 0:09:42]} 22. e5 {[%emt 0:04:24]} fxe5 {[%emt 0:09:09]} 23. f4 {[%emt 0:14:40] [#] Strongly threatening fxe5.} Qxc4 {[%emt 0:04:48]} 24. Qg5 {[%emt 0:01:48]} Bd5 {[%emt 0:05:16]} ({Much less strong is} 24... exf4 25. Rf1 Qxf1+ 26. Kxf1 fxe3 27. Rxa7 $16 (27. Qxe3 a5 $14)) 25. fxe5 {[%emt 0:01:08][%cal Ob7e7] White wants to mate with Rxe7+! Really sharp!} Bxb7 {[%emt 0:00:21]} 26. Qf5+ {[%emt 0:00:21]} Kg7 {[%emt 0:00:02] Hoping for ...Be4.} 27. e6 {[%emt 0:00:22][%csl Ge6][%cal Rf5f7]} Rhg8 $2 {[%emt 0:00:59][%mdl 8192] [#]} 28. Qg5+ {[%emt 0:01:47]} Kh7 {[%emt 0:00:28]} 29. Qh6# {[%emt 0:00:06] Weighted Error Value: White=0.11 (very precise) /Black=0.35} 1-0

[Event "1st Sales Oliveira Masters 2022"]
[Site "Sales Oliveira"]
[Date "2022.06.08"]
[Round "2.5"]
[White "Gemy, Jose Daniel"]
[Black "Born, Carlos Rodrigo"]
[Result "1/2-1/2"]
[ECO "B99"]
[WhiteElo "2367"]
[BlackElo "2292"]
[Annotator "TA"]
[PlyCount "132"]
[EventDate "2022.05.30"]
[EventType "swiss"]
[EventCountry "BRA"]
[SourceTitle "playchess.com"]
[Source "ChessBase"]
[SourceQuality "1"]
[TimeControl "40/5400+30:1800+30"]

{[%evp 22,132,39,42,44,45,37,49,49,48,40,41,45,41,50,36,31,35,58,50,48,13,13,12,12,12,12,12,12,10,13,10,25,7,9,8,48,32,36,0,0,0,0,0,32,30,45,23,20,-9,17,-8,15,0,6,0,0,0,0,0,0,0,0,0,0,0,0,0,0,0,0,0,0,0,0,0,0,0,0,0,0,0,0,0,0,0,0,0,0,0,0,0,0,0,0,0,0,0,0,0,0,0,0,0,0,0,0,0,0,0,0,0,0]} 1. e4 {[%emt 0:00:03]} c5 {[%emt 0:00:03]} 2. Nf3 {[%emt 0:00:06]} d6 {[%emt 0:00:05]} 3. d4 {[%emt 0:01:41]} cxd4 {[%emt 0:00:03]} 4. Nxd4 {[%emt 0:00:08]} Nf6 {[%emt 0:00:02]} 5. Nc3 {[%emt 0:00:12]} a6 {[%emt 0:00:02]} 6. Bg5 {[%emt 0:00:13]} e6 {[%emt 0:00:18]} 7. f4 {[%emt 0:04:40]} Be7 {[%emt 0:00:14]} 8. Qf3 {[%emt 0:17:36]} Qc7 {[%emt 0:00:24]} 9. O-O-O {[%emt 0:00:36]} Nbd7 {[%emt 0:00:05]} 10. g4 {[%emt 0:01:02][%cal Bg2g4,Bg4g5][%mdl 32]} h6 {[%emt 0:00:20]} 11. Bxf6 {[%emt 0:02:11]} Bxf6 {[%emt 0:00:03]} 12. h4 {[%emt 0:01:06]} Nb6 $1 {[%emt 0:00:13][%mdl 4] is now more promising than 12...Qb6. B99: Sicilian Najdorf: 6 Bg5 e6 7 f4 Be7 8 Qf3 Qc7 9 0-0-0 Nbd7.} 13. g5 {[%emt 0:03:33]} Bxd4 {[%emt 0:00:19]} 14. Rxd4 {[%emt 0:00:31]} Qc5 {[%emt 0:00:02] White is slightly better.} 15. Rd2 {[%emt 0:07:16]} Bd7 {[%emt 0:00:39]} 16. Qd3 {[%emt 0:06:17]} hxg5 {[%emt 0:10:13]} 17. fxg5 {[%emt 0:01:38] [#]} Bc6 $146 {[%emt 0:01:28]} ({Predecessor:} 17... Ke7 18. Bg2 Nc4 19. Re2 Rac8 20. Rf1 Rxh4 21. Qg3 Rh5 22. g6 f6 23. e5 Rxe5 24. Rxe5 Qxe5 25. Qxe5 Nxe5 26. Bxb7 {0-1 (45) Dejmek,M (2018)-Perez Gormaz,M (2400) Chess.com INT 2021}) 18. Qxd6 {[%emt 0:01:21]} Qxd6 {[%emt 0:00:02]} 19. Rxd6 {[%emt 0:00:09]} Ke7 {[%emt 0:00:14]} 20. Rd2 {[%emt 0:00:39]} Nd7 {[%emt 0:00:41]} 21. Nd5+ {[%emt 0:18:36]} exd5 {[%emt 0:07:22]} 22. exd5 {[%emt 0:00:13]} Bb5 {[%emt 0:00:02] [#] Threatens to win with ...Bxf1.} 23. c4 $1 {[%emt 0:00:09]} Rac8 {[%emt 0:02:59]} 24. Rc2 {[%emt 0:00:06]} Bxc4 {[%emt 0:00:24]} 25. Bxc4 {[%emt 0:00:02]} Kd6 {[%emt 0:00:07]} 26. Be2 {[%emt 0:23:41]} Rce8 {[%emt 0:00:45]} 27. h5 {[%emt 0:01:20]} Re5 {[%emt 0:02:09]} 28. Rg1 {[%emt 0:00:30]} Rf5 {[%emt 0:02:21]} 29. g6 {[%emt 0:01:03]} f6 {[%emt 0:01:15]} 30. Bg4 {[%emt 0:00:53]} Rg5 {[%emt 0:00:18]} 31. Rcg2 {[%emt 0:01:17]} Ne5 {[%emt 0:00:08]} 32. Be2 {[%emt 0:00:09]} Rf5 {[%emt 0:00:42]} 33. Rh1 {[%emt 0:01:00][%cal Oh5h6]} Rh6 {[%emt 0:02:22]} 34. Rd1 {[%emt 0:00:29]} Rf4 {[%emt 0:00:29]} 35. b3 {[%emt 0:02:57] The position is equal.} Re4 {[%emt 0:00:52]} 36. a4 {[%emt 0:01:04]} f5 {[%emt 0:00:11]} 37. Rf1 {[%emt 0:01:39]} f4 {[%emt 0:00:07]} 38. Kd2 {[%emt 0:01:47]} Rh8 {[%emt 0:00:37]} 39. Rgf2 {[%emt 0:01:15]} Rf8 {[%emt 0:01:11]} 40. h6 {[%emt 0:00:34]} gxh6 {[%emt 0:02:52]} 41. Rxf4 {[%emt 0:30:39]} Rexf4 {[%emt 0:31:13]} (41... Rfxf4 $2 42. Rxf4 Rxf4 43. g7 $18) 42. Rxf4 {[%emt 0:00:01]} Nxg6 $11 {[%emt 0:00:23][%mdl 4096] Endgame KRB-KRN} (42... Rxf4 $2 43. g7 Rd4+ 44. Kc3 Rxd5 45. g8=Q $18) 43. Rb4 {[%emt 0:00:17]} Nf4 {[%emt 0:33:39]} 44. Rxb7 {[%emt 0:00:59]} Nxe2 {[%emt 0:00:10]} 45. Kxe2 {[%emt 0:00:13]} Kxd5 {[%emt 0:00:05] KR-KR} 46. Rh7 {[%emt 0:00:31]} Rf6 {[%emt 0:00:22]} 47. Kd3 {[%emt 0:00:11]} Kc5 {[%emt 0:02:00]} 48. Kc3 {[%emt 0:00:05]} Rf3+ {[%emt 0:00:14]} 49. Kb2 {[%emt 0:00:02]} Rh3 {[%emt 0:00:06]} 50. Ka3 {[%emt 0:00:16]} Rh1 {[%emt 0:01:11]} 51. Rf7 {[%emt 0:01:16]} Ra1+ {[%emt 0:02:05]} 52. Kb2 {[%emt 0:00:01]} Rd1 {[%emt 0:00:32]} 53. Rc7+ {[%emt 0:01:09]} Kb6 {[%emt 0:00:08]} 54. Rh7 {[%emt 0:00:08]} Rd6 {[%emt 0:00:04]} 55. b4 {[%emt 0:00:43]} Rg6 {[%emt 0:01:55]} 56. a5+ {[%emt 0:01:16]} Kb5 {[%emt 0:00:20]} 57. Rb7+ {[%emt 0:00:05]} Ka4 {[%emt 0:00:04]} 58. Rb6 {[%emt 0:00:15]} Rg2+ {[%emt 0:00:05]} 59. Kc3 {[%emt 0:00:04]} h5 {[%emt 0:00:33]} 60. Rxa6 {[%emt 0:01:54] [#] aiming for Rb6.} Rg3+ {[%emt 0:00:03]} 61. Kc4 {[%emt 0:00:14]} Rg4+ {[%emt 0:00:02]} 62. Kc5 {[%emt 0:00:27]} Rg5+ {[%emt 0:00:42]} 63. Kc4 {[%emt 0:00:09] Hoping for Rh6.} Rg4+ {[%emt 0:00:07]} 64. Kc5 {[%emt 0:00:02]} Rg5+ {[%emt 0:00:33]} 65. Kc4 {[%emt 0:01:47]} Rg4+ {[%emt 0:00:34]} 66. Kc5 {[%emt 0:00:22] Rh6 is the strong threat.} Rg5+ {[%emt 0:00:14] Weighted Error Value: White=0.05 (flawless) /Black=0.04 (flawless)} 1/2-1/2

[Event "1st Sales Oliveira Masters 2022"]
[Site "Sales Oliveira"]
[Date "2022.06.09"]
[Round "3.1"]
[White "Born, Carlos Rodrigo"]
[Black "Fier, Alexandr"]
[Result "0-1"]
[ECO "A34"]
[WhiteElo "2292"]
[BlackElo "2567"]
[Annotator "TA"]
[PlyCount "94"]
[EventDate "2022.05.30"]
[EventType "swiss"]
[EventCountry "BRA"]
[SourceTitle "playchess.com"]
[Source "ChessBase"]
[SourceQuality "1"]
[TimeControl "40/5400+30:1800+30"]

{[%evp 17,94,-43,-11,-32,-14,0,15,-24,-23,-33,-23,-38,-25,-33,-28,-83,-76,-91,-62,-77,-75,-62,-61,-112,-112,-112,-110,-110,-108,-114,-116,-146,-78,-116,-120,-185,-142,-152,-77,-137,-137,-146,-107,-122,-123,-156,-156,-152,-159,-160,-161,-162,-123,-215,-215,-215,-202,-190,-189,-193,-175,-234,-221,-277,-310,-325,-306,-299,-286,-321,-320,-449,-398,-830,-781,-1054,-982,-1481,-1044]} 1. Nf3 {[%emt 0:00:00]} Nf6 {[%emt 0:00:06][%cal Bg8f6,Bf6d5,Bd5c7][%mdl 32]} 2. g3 {[%emt 0:00:11]} c5 {[%emt 0:00:04]} 3. Bg2 {[%emt 0:00:07]} Nc6 {[%emt 0:00:05]} 4. O-O {[%emt 0:00:29]} e5 {[%emt 0:00:04]} 5. c4 {[%emt 0:01:12]} d5 {[%emt 0:00:05]} 6. cxd5 {[%emt 0:00:16]} Nxd5 {[%emt 0:00:04]} 7. d3 {[%emt 0:00:35]} Be7 {[%emt 0:00:09]} 8. a3 {[%emt 0:01:27]} O-O {[%emt 0:00:24]} 9. Nc3 {[%emt 0:04:38]} Nc7 {[%emt 0:01:57]} 10. Nd2 {[%emt 0:03:41] A34: Symmetrical English: 2 Nc3, lines with ...d5.} Bd7 {[%emt 0:00:09]} 11. Nc4 {[%emt 0:03:42]} b5 {[%emt 0:00:05]} 12. Ne3 {[%emt 0:03:29] The position is equal.} (12. Bxc6 $5 Bxc6 13. Nxe5 $11) 12... Rc8 {[%emt 0:00:08]} 13. Ned5 {[%emt 0:00:28]} Nxd5 {[%emt 0:00:07]} 14. Nxd5 {[%emt 0:00:03]} Be6 {[%emt 0:00:06]} 15. Nxe7+ {[%emt 0:01:11]} Qxe7 {[%emt 0:00:05]} 16. f4 {[%emt 0:05:56]} (16. Be3 $11 {keeps the balance.}) 16... exf4 {[%emt 0:00:48] [#]} 17. Rxf4 $146 {[%emt 0:12:51]} ({Predecessor:} 17. gxf4 Bg4 18. Bf3 Bxf3 19. Rxf3 Nd4 20. Rf2 Rfe8 21. e3 Nf5 22. e4 Nd4 23. f5 {1-0 (34) Staller,P (2355)-Vettel,M Germany 1989}) 17... Rfd8 {[%emt 0:02:36]} 18. Bxc6 {[%emt 0:06:30]} Rxc6 {[%emt 0:00:07]} 19. Qf1 {[%emt 0:00:31] Prevents Bh3.} c4 {[%emt 0:02:08] Strongly threatening ...cxd3.} 20. d4 {[%emt 0:00:55]} ({White should play} 20. Bd2 $1 $15) 20... Bd5 $17 {[%emt 0:00:33] 0x0.0022f9fa14c5dp-1022s more active pieces.} 21. Bd2 {[%emt 0:02:06]} Re6 {[%emt 1:31:10]} 22. Re1 {[%emt 0:03:09]} Re8 {[%emt 0:00:00]} 23. Rf5 {[%emt 0:11:58]} Qd7 {[%emt 0:00:00]} (23... Rxe2 $2 24. Rxe2 Qxe2 25. Qxe2 Rxe2 26. Rxd5 $18) 24. Qf2 {[%emt 0:02:37]} Re4 {[%emt 0:00:00]} (24... Rxe2 $2 25. Rxe2 Rxe2 26. Qxe2 $18) (24... Be4 $142 25. Rc5 Rc6) 25. Bc3 {[%emt 0:02:39]} f6 {[%emt 0:00:00]} (25... Rxe2 $2 26. Rxe2 Re6 27. Ree5 Rxe5 28. Rxe5 $18) 26. Rf4 {[%emt 0:02:11]} (26. e3 $17) 26... h5 {[%emt 0:00:00]} 27. e3 {[%emt 0:05:48]} Qh3 {[%emt 0:00:00]} (27... Rxf4 $142 28. exf4 Rxe1+ 29. Qxe1 Qg4) 28. Qf1 {[%emt 0:03:28]} ({Better is} 28. Rf5 Rd8 29. Ba5) 28... Qe6 $1 {[%emt 0:00:00]} (28... Qxf1+ 29. Rfxf1 h4 30. Rf5 $11) 29. Qf2 {[%emt 0:00:48]} Kf7 {[%emt 0:00:00]} (29... Rxe3 $6 30. Rxe3 Qxe3 31. Qxe3 Rxe3 32. Rf5 $11) 30. Qf3 {[%emt 0:01:50]} Kg6 {[%emt 0:00:00]} ({Not} 30... Rxe3 31. Rxe3 Qxe3+ 32. Qxe3 Rxe3 33. Rf5 $15) 31. Rxe4 {[%emt 0:00:38]} Bxe4 {[%emt 0:00:00]} ({Weaker is} 31... Qxe4 32. Qxe4+ Bxe4 33. Ra1 $15) 32. Qf4 {[%emt 0:00:14] [#]} Rd8 $1 {[%emt 0:00:00][%cal Be8d8,Bd8d5,Bd5g5,Bg5g4][%mdl 32]} ({Inferior is} 32... Qh3 33. Re2 $17) 33. h3 {[%emt 0:02:12] [#]} Rd5 $1 {[%emt 0:00:00]} 34. g4 {[%emt 0:00:03]} Rg5 {[%emt 0:00:00][%cal Rh5g4]} 35. Kh2 {[%emt 0:00:20]} (35. Kf2 $17 {is a better defense.}) 35... hxg4 $19 {[%emt 0:00:00]} 36. hxg4 {[%emt 0:03:30]} Qxg4 {[%emt 0:00:00] Really sharp!} 37. Qxg4 {[%emt 0:00:26]} Rxg4 {[%emt 0:00:00][%mdl 4096] Endgame KRB-KRB} 38. Rg1 {[%emt 0:00:25] Against Rg2+} Kh5 {[%emt 0:00:00]} 39. Be1 {[%emt 0:00:52]} (39. d5 $142) 39... Bd5 {[%emt 0:00:00]} 40. Rg3 {[%emt 0:00:20]} g5 {[%emt 0:00:00]} 41. Bf2 {[%emt 0:31:37]} a6 {[%emt 0:00:00][%cal Ba7a6,Ba6a5,Ba5b4][%mdl 32]} 42. Be1 {[%emt 0:00:50]} Re4 {[%emt 0:00:00]} 43. Bf2 {[%emt 0:01:34]} Kg6 {[%emt 0:00:00]} 44. Rh3 {[%emt 0:00:11]} (44. Be1 $142) 44... Re8 {[%emt 0:00:00]} 45. Kg3 $2 {[%emt 0:00:17]} (45. Kg1 f5 46. Rg3) 45... a5 {[%emt 0:00:00] Black is clearly winning.} 46. Kh2 {[%emt 0:00:14]} b4 {[%emt 0:00:00] And now ...c3 would win.} 47. axb4 {[%emt 0:00:29]} axb4 {[%emt 0:00:00] Weighted Error Value: White=0.52/Black=0.12 (very precise)} 0-1

[Event "1st Sales Oliveira Masters 2022"]
[Site "Sales Oliveira"]
[Date "2022.06.09"]
[Round "3.2"]
[White "Lima, Darcy"]
[Black "Gemy, Jose Daniel"]
[Result "0-1"]
[ECO "A18"]
[WhiteElo "2488"]
[BlackElo "2367"]
[Annotator "TA"]
[PlyCount "60"]
[EventDate "2022.05.30"]
[EventType "swiss"]
[EventCountry "BRA"]
[SourceTitle "playchess.com"]
[Source "ChessBase"]
[SourceQuality "1"]
[TimeControl "40/5400+30:1800+30"]

{[%evp 14,60,14,29,39,-56,-62,-59,-62,-80,-86,-105,-100,-100,-94,-118,-89,-133,-116,-170,-176,-176,-175,-165,-172,-210,-162,-187,-167,-250,-168,-227,-230,-254,-202,-292,-296,-404,-401,-557,-563,-805,-652,-1206,-1189,-1094,-927,-1454,-1423]} 1. c4 {[%emt 0:00:14]} Nf6 {[%emt 0:00:20]} 2. Nc3 {[%emt 0:00:31]} e6 {[%emt 0:01:46]} 3. e4 {[%emt 0:01:00]} d5 {[%emt 0:00:13]} 4. e5 {[%emt 0:00:29]} d4 {[%emt 0:01:10]} 5. exf6 {[%emt 0:00:36]} dxc3 {[%emt 0:00:06]} 6. bxc3 {[%emt 0:00:07]} Qxf6 {[%emt 0:00:11]} 7. Nf3 {[%emt 0:00:52]} c5 {[%emt 0:07:42]} 8. d4 {[%emt 0:04:42] 8.Bd3 injects fresh life into this line.} cxd4 {[%emt 0:04:29] A18: English Opening: Flohr-Mikenas System (1 c4 Nf6 2 Nc3 e6 3 e4).} 9. Bd3 {[%emt 0:23:24]} ({Don't play} 9. Qxd4 Nc6 10. Qxf6 gxf6 $11) ({Better is} 9. Bg5 $14 Qf5 10. cxd4 (10. Qxd4 Nc6 $15)) 9... dxc3 $15 {[%emt 0:14:29][%cal Oc3c2] [#] And now ...c2! would win.} 10. Bg5 {[%emt 0:00:07]} c2 $1 {[%emt 0:00:12] Black is slightly better.} 11. Bxc2 {[%emt 0:00:06]} Qc3+ {[%emt 0:00:03]} 12. Kf1 {[%emt 0:08:47][%csl Gg5][%cal Rd1d8] [#]} Nc6 $146 {[%emt 0:01:00] Prevents Qd8+.} ({Predecessor:} 12... Qxc4+ 13. Bd3 Qd5 14. Kg1 Nc6 15. Qe2 Be7 16. Bxe7 Nxe7 17. Bb5+ Bd7 18. Bxd7+ Qxd7 19. Rd1 Qc7 20. Rc1 Qxc1+ {0-1 (20) Shahade,M (2239)-Grigoryan,M (2044) Chess.com INT 2021}) 13. Rc1 {[%emt 0:08:59][%cal Oc2h7]} Qa5 {[%emt 0:00:44]} 14. h4 {[%emt 0:02:31]} Bc5 {[%emt 0:04:00] Prevents Nd4.} 15. Bb1 {[%emt 0:13:14]} Qc7 {[%emt 0:07:07]} 16. Rh3 {[%emt 0:04:12]} (16. Qd2 $17) 16... f6 {[%emt 0:04:19]} 17. Bd2 {[%emt 0:00:13]} e5 {[%emt 0:00:05]} 18. Rg3 {[%emt 0:00:09]} Be6 {[%emt 0:00:05]} 19. Be1 {[%emt 0:03:42]} g6 {[%emt 0:01:57][%cal Bg7g6,Bg6g5][%mdl 32]} 20. h5 {[%emt 0:03:08]} g5 {[%emt 0:00:10]} 21. h6 {[%emt 0:00:03]} (21. Be4 $142) 21... Qd7 {[%emt 0:01:34]} 22. Qb3 {[%emt 0:07:19]} (22. Qxd7+ {was necessary.} Kxd7 23. Be4) 22... O-O-O $19 {[%emt 0:05:29]} 23. Qb5 {[%emt 0:00:40]} Qd6 {[%emt 0:07:55] Strongly threatening ...g4.} 24. Nd2 {[%emt 0:03:51]} (24. Be4 $142) 24... Nd4 {[%emt 0:00:38]} 25. Qb2 {[%emt 0:00:01]} f5 {[%emt 0:00:29][%cal Bf6f5,Bf5f4][%mdl 32] Against Ne4} 26. Rcc3 {[%emt 0:04:34]} g4 {[%emt 0:06:46] Black is clearly winning.} 27. Qc1 {[%emt 0:03:53]} Qe7 {[%emt 0:03:39] Hoping for ...Qh4.} 28. Nb3 {[%emt 0:00:23] [#]} Qh4 $1 {[%emt 0:03:12][%cal Rh4h1]} 29. Nxd4 {[%emt 0:00:14]} Bxd4 {[%emt 0:06:20]} 30. Ra3 {[%emt 0:02:57]} f4 {[%emt 0:00:46] Black took control after the opening.  Weighted Error Value: White=0.81/Black=0.19 (very precise)} 0-1